Cogmind - Beta 11.1 @@@ ROGUE MODE // 2022.07.14 @ 20:57:03 Player: tkc Result: Self-destructed Performance ------------- Evolutions (1) 500 Regions Visited (2) 400 Robots Destroyed (30) 150 Value Destroyed (614) 614 Prototype IDs (0) 0 Alien Tech Used (0) 0 Bonus (0) 0 TOTAL SCORE: 1664 Bonus ------- None Cogmind --------- Core Integrity 375/400 Matter 258/300 Energy 265/265 System Corruption 0% Temperature Cool (0) Movement Rolling (190) Ox6 Location -9/Materials Parts ------- > --- POWER (1) -------- Improved Ion Engine > --- PROPULSION (2) --- Light Treads Compact Wheel > --- UTILITY (4) ------ Medium Storage Unit Huge Storage Unit Improved Targeting Computer Hardened Light Armor Plating > --- WEAPON (2) ------- Light Assault Rifle Autogun > --- INVENTORY (25) --- Ion Engine Light Ion Engine Light Ion Engine Light Treads Light Treads Improved Treads Aluminum Leg Large Storage Unit High-capacity Matter Pod (200) Weight Redist. System Sensor Array Improved Terrain Scanner Light Armor Plating Small Laser Beam Rifle Light Assault Rifle Light Assault Rifle Peak State ------------ > --- POWER ------------ Improved Ion Engine > --- PROPULSION ------- Light Treads Compact Wheel > --- UTILITY ---------- Medium Storage Unit Huge Storage Unit Improved Targeting Computer Hardened Light Armor Plating > --- WEAPON ----------- Light Assault Rifle Autogun > --- INVENTORY -------- Ion Engine Light Ion Engine Light Ion Engine Light Treads Light Treads Improved Treads Aluminum Leg Large Storage Unit High-capacity Matter Pod Weight Redist. System Sensor Array Improved Terrain Scanner Light Armor Plating Small Laser Beam Rifle Light Assault Rifle Light Assault Rifle [Rating: 15] Favorites ----------- Power Light Ion Engine Engine Light Ion Engine Propulsion Light Treads Treads Light Treads Wheel Wheel Utility Large Storage Unit Device Seismic Detector Storage Large Storage Unit Processor Improved Targeting Computer Protection Light Armor Plating Weapon Small Laser Energy Gun Small Laser Ballistic Gun Light Assault Rifle Special Weapon Mining Laser Build | -11 -10 -9 ------- Run | Scr Mat Mat Slots Evolved 2 | . . 2 Power . | . . . Propulsion . | . . . Utility 2 | . . 2 Weapon . | . . . Parts Attached 35 | 10 11 14 Power 4 | 1 1 2 Engine 4 | 1 1 2 Core . | . . . Reactor . | . . . Propulsion 7 | 2 3 2 Treads 4 | . 3 1 Leg . | . . . Wheel 3 | 2 . 1 Hover . | . . . Flight . | . . . Utility 13 | 2 3 8 Device 3 | 1 1 1 Storage 7 | 1 2 4 Processor 1 | . . 1 Hackware . | . . . Protection 2 | . . 2 Artifact . | . . . Weapon 11 | 5 4 2 Energy Gun 6 | 3 3 . Energy Cannon . | . . . Ballistic Gun 4 | 1 1 2 Ballistic Cannon . | . . . Launcher . | . . . Special Weapon 1 | 1 . . Impact Weapon . | . . . Slashing Weapon . | . . . Piercing Weapon . | . . . Special Melee Weapon . | . . . Unidentified Prototypes . | . . . Corrupted Parts 1 | 1 . . System Corruption 1 | 1 . . Parts Lost 6 | . 3 3 Power 2 | . 1 1 Propulsion 2 | . 1 1 Utility 1 | . . 1 Weapon 1 | . 1 . Highest Loss Streak 3 | . 3 3 To Critical Strikes . | . . . Average Slot Usage (%) 98 | . 97 99 Engine 12 | . 12 10 Treads 13 | . 12 14 Wheel 11 | . 14 7 Device 9 | . 14 4 Storage 17 | . 14 22 Processor 3 | . . 9 Protection 3 | . . 7 Energy Gun 18 | . 22 11 Ballistic Gun 7 | . 5 10 Naked Turns . | . . . Heaviest Build 112 | 12 87 112 Greatest Support 40 | 26 26 40 Greatest Overweight (x) 8 | . 8 6 Average Overweight (x) 2 | . 2 4 Largest Inventory Capacity 25 | 8 25 25 Average Capacity 16 | 7 15 20 Most Carried 17 | 8 15 17 Average Carried 12 | 5 12 14 Final Capacity 25 | 8 15 25 Final Carried 17 | 8 15 17 Class Distribution -------------------- 66% | Mutant 33% | Scavenger-Mutant Dominant Class ---------------- Mutant | -10/Materials Scavenger-Mutant | -9/Materials Resources | -11 -10 -9 ----------- Run | Scr Mat Mat Matter Collected 780 | 307 360 113 Remotely . | . . . Salvage Created 1128 | 228 631 269 Parts 60 | 12 37 11 Haulers Intercepted 2 | . 2 . Recyclers Shooed 3 | 1 2 . Parts Field Recycled . | . . . Retrieved Matter . | . . . Parts Self-Destructed . | . . . Prevented . | . . . Kills | -11 -10 -9 ------- Run | Scr Mat Mat Combat Hostiles Destroyed 18 | . 13 5 Guns 17 | . 12 5 Classes Destroyed 8 | 3 4 1 Worker 2 | 2 . . Tunneler 3 | 3 . . Hauler 2 | . 2 . Recycler 2 | 1 1 . Watcher 3 | . 2 1 Swarmer 6 | . 6 . Grunt 9 | . 7 2 Sentry 3 | . . 3 Best Kill Streak 5 | 2 5 1 Combat Bots Only 4 | . 4 1 Max Kills in Single Turn 1 | 1 1 1 Gunslinging . | . . . Exploded . | . . . Melee . | . . . Uniques/NPCs Destroyed . | . . . Combat | -11 -10 -9 -------- Run | Scr Mat Mat Damage Taken 930 | . 652 278 Core 222 | . 197 25 Absorbed by Shields . | . . . Core Remaining (%) 60 | 100 21 . Volleys Fired 126 | 21 82 23 Largest 2 | 2 2 2 Hottest 80 | 80 80 80 Shots Fired 245 | 42 157 46 Gun 245 | 42 157 46 Cannon . | . . . Launcher . | . . . Special . | . . . Kinetic 84 | 11 59 14 Thermal 120 | 18 70 32 Explosive . | . . . Electromagnetic 41 | 13 28 . Robot Hit Streak 11 | 8 7 11 Robot Miss Streak 4 | 3 4 1 Penetration Max . | . . . Secondary Targets . | . . . Shots Hit Robots 150 | 28 83 39 Core Hits 56 | 8 36 12 Critical Kills . | . . . Critical Parts Destroyed . | . . . Critical Strikes . | . . . Melee Attacks . | . . . Impact . | . . . Slashing . | . . . Piercing . | . . . Sneak Attacks . | . . . Combat Hostiles . | . . . Follow-up Attacks . | . . . Damage Inflicted 1754 | 324 1008 422 Guns 1644 | 324 898 422 Cannons . | . . . Explosions 110 | . 110 . Melee . | . . . Ramming . | . . . Kinetic 427 | 65 238 124 Thermal 968 | 136 534 298 Explosive . | . . . Electromagnetic 359 | 123 236 . Impact . | . . . Slashing . | . . . Piercing . | . . . Highest Corruption 1 | 1 1 . Average Corruption 1 | 1 1 . Corruption Purged . | . . . Corruption Blocked . | . . . Effects 6 | . 6 . Message Errors 1 | . 1 . Matter Fused 1 | . 1 . Heat Flow Errors 1 | . 1 . Energy Discharges 1 | . 1 . Parts Rejected 1 | . 1 . Alerts 1 | . 1 . Overload Shots . | . . . Overflow Damage . | . . . Projectiles . | . . . Explosions . | . . . Melee . | . . . Knockbacks . | . . . Impact . | . . . Kinetic . | . . . Secondary . | . . . Self-Inflicted Damage 39 | . 39 . Shots 1 | . 1 . Rammed . | . . . Targets Rammed . | . . . Kicked . | . . . Crushed . | . . . Highest Temperature 343 | 90 343 75 Average Temperature 71 | 39 94 28 Received Heat Transfer 366 | . 243 123 Siege Activations . | . . . Robots Corrupted 1 | . 1 . Combat Hostiles 1 | . 1 . Parts Fried . | . . . Impact Corruptions . | . . . Robots Melted . | . . . Combat Hostiles . | . . . Parts Melted 4 | . 1 3 Heat Transferred 2025 | 300 1075 650 Parts Sabotaged . | . . . Parts Stolen . | . . . Parts Stripped . | . . . Power Chain Reactions 1 | . 1 . Missiles Intercepted . | . . . Alert | -11 -10 -9 ------- Run | Scr Mat Mat Peak Influence 301 | 30 301 196 Initial 19 | . 19 16 Average 115 | 8 160 81 Maximum Alert Level 1 | . 1 . Low Security (%) 89 | 100 79 100 Level 1 10 | . 20 . Level 2 . | . . . Level 3 . | . . . Level 4 . | . . . Level 5 . | . . . High Security . | . . . Max Security . | . . . Squads Dispatched 3 | . 3 . Investigation 1 | . 1 . Extermination . | . . . Reinforcement 2 | . 2 . Assault . | . . . Garrison . | . . . Intercept . | . . . Searches Triggered . | . . . Construction Impeded . | . . . Haulers Reinforced . | . . . Active Scanning Responses . | . . . Cargo Convoy Interrupts . | . . . Stealth | -11 -10 -9 --------- Run | Scr Mat Mat Distress Signals . | . . . Communications Jammed . | . . . Distress Signals . | . . . Times Spotted 30 | . 22 8 Peak Tracking Total 4 | . 4 2 Tactical Retreats . | . . . Traps | -11 -10 -9 ------- Run | Scr Mat Mat Traps Triggered 1 | . 1 . Indirectly . | . . . Trap Hack Attempts . | . . . Triggered . | . . . Disarmed . | . . . Reprogrammed . | . . . Reused . | . . . Traps Extracted . | . . . Installed . | . . . Triggered . | . . . Machines | -11 -10 -9 ---------- Run | Scr Mat Mat Machines Disabled . | . . . Max in Single Turn . | . . . Machines Sabotaged . | . . . Garrisons Compromised . | . . . Overloaded Fab Kills . | . . . Hacking | -11 -10 -9 --------- Run | Scr Mat Mat Machines Accessed 7 | . 4 3 Terminals 6 | . 3 3 Fabricators . | . . . Repair Stations . | . . . Recycling Units 1 | . 1 . Scanalyzers . | . . . Garrison Access . | . . . Total Hacks 27 | . 17 10 Successful 16 | . 13 3 Failed 11 | . 4 7 Catastrophic 1 | . 1 . Database Lockouts . | . . . Manual 18 | . 9 9 Terminals 21 | . 11 10 Fabricators . | . . . Repair Stations . | . . . Recycling Units 6 | . 6 . Scanalyzers . | . . . Garrison Access . | . . . Terminal Hacks 8 | . 6 2 Robot Analysis 2 | . 1 1 Level Access Points 1 | . 1 . Terminal Index 2 | . 1 1 Alert Level 2 | . 2 . Zone Layout 1 | . 1 . Fabricator Hacks . | . . . Repair Station Hacks . | . . . Recycling Unit Hacks 5 | . 5 . Process 1 | . 1 . Report Inventory 2 | . 2 . Retrieve Matter 1 | . 1 . Retrieve Components 1 | . 1 . Scanalyzer . | . . . Garrison Access Hacks . | . . . Unauthorized Hacks 3 | . 2 1 Terminals 3 | . 2 1 Track 1 | . 1 . Botnet 2 | . 1 1 Fabricators . | . . . Repair Stations . | . . . Recycling Units . | . . . Scanalyzers . | . . . Garrison Access . | . . . Data Cores Recovered . | . . . Used . | . . . Hacking Detections 6 | . 3 3 Full Trace Events 1 | . 1 . Feedback Events . | . . . Feedback Blocked . | . . . Robot Schematics Acquired . | . . . Robots Built . | . . . Authchips . | . . . Time . | . . . Total Robot Build Rating . | . . . Part Schematics Acquired . | . . . Parts Built . | . . . Authchips . | . . . Time . | . . . Total Part Build Rating . | . . . Parts Repaired . | . . . Time . | . . . Parts Recycled . | . . . Recycled Matter 6 | . 6 . Retrieved Matter 6 | . 6 . Retrieved Components . | . . . Parts Scanalyzed . | . . . Part Schematics Acquired . | . . . Parts Damaged . | . . . Bothacking | -11 -10 -9 ------------ Run | Scr Mat Mat Used RIF Installer . | . . . Robots Hacked . | . . . Non-combat . | . . . Combat . | . . . Robot Hacks Applied . | . . . Relay Couplers Released . | . . . Fabnet Peak Effective % . | . . . Robots Rewired . | . . . Allies Hacked . | . . . Hacks Repelled . | . . . Allies | -11 -10 -9 -------- Run | Scr Mat Mat Total Allies . | . . . Largest Group . | . . . Highest-Rated Group . | . . . Highest-Rated Ally . | . . . Total Orders . | . . . Ally Attacks . | . . . Total Damage . | . . . Kills . | . . . Allies Corrupted . | . . . Allies Melted . | . . . Intel | -11 -10 -9 ------- Run | Scr Mat Mat Robot Analysis Total 2 | . 1 1 Derelict Logs Recovered . | . . . Drone Launches . | . . . Drone Recoveries . | . . . Exploration | -11 -10 -9 ------------- Run | Scr Mat Mat Turns Passed 1594 | 161 832 601 Spaces Moved 720 | 73 372 275 Core 4 | 4 . . Treads 166 | . 101 65 Legs . | . . . Wheels 550 | 69 271 210 Hover . | . . . Flight . | . . . Fastest Speed 50 | 50 90 125 Average Speed 155 | 88 149 181 Slowest Speed 240 | 100 240 240 Overloaded Moves . | . . . Propulsion Burnouts . | . . . Robots Hopped . | . . . Cave-ins Triggered . | . . . Exploration Rate (%) 29 | 5 61 21 Regions Visited 2 Branch Regions . Pre-discovered Areas . | . . . Known Exits Taken 1 | . 1 . Unknown Exits Taken 1 | 1 . . Scrap Searched . | . . . Spaces Dug . | . . . Terrain Destroyed 2 | . 2 . Melee . | . . . Projectile . | . . . AOE 2 | . 2 . Terrain Rammed . | . . . Walls Destroyed . | . . . Machines Disabled . | . . . Actions | -11 -10 -9 --------- Run | Scr Mat Mat Total 963 | 126 505 332 Wait 38 | 7 20 11 Move 718 | 72 371 275 Hop . | . . . Pick Up 31 | 12 14 5 Fast Attach 12 | 7 3 2 Attach 9 | 1 3 5 Detach 1 | . . 1 Swap 14 | 2 5 7 Drop 14 | 4 7 3 Fire 126 | 21 82 23 Melee . | . . . Ram . | . . . Kick . | . . . Crush . | . . . Escape Stasis . | . . . Rewire . | . . . Trap . | . . . Miscellaneous . | . . . Route ------- -11/Scrapyard -10/Materials (discovered 4 exits: *Mat x3 / [*Min]) -9/Materials History --------- Turn | Location | Event 20 | -11/Scrapyard | Discovered new exit (range 16) 162 | -11/Scrapyard | Entered Materials 303 | -10/Materials | Build established: Mutant 368 | -10/Materials | Core integrity fell below 50% 400 | -10/Materials | Lost 3 parts (1p1n1w) 450 | -10/Materials | Identified exit to Materials 673 | -10/Materials | Discovered new exit (range 6) 994 | -10/Materials | Entered another Materials area 994 | -9/Materials | Evolved 2 slots: Utility x2 1092 | -9/Materials | Lost 3 parts (1p1n1u) 1295 | -9/Materials | Build established: Scavenger-Mutant 1595 | -9/Materials | Self-destructed Last Messages --------------- 01273_ Acquired Med. Storage Unit. 01284_ K-01 Serf collects debris. 01313_ K-01 Serf cleans the Nuclear Reactor. 01323_ Y-45 Defender destroyed. 01325_ K-01 Serf collects debris. 01335_ Acquired 56 matter. 01336_ K-01 Serf collects debris. 01350_ Connecting with Terminal... 01444_ K-01 Serf collects debris. 01484_ Dropped Sml. Laser. 01517_ Acquired Autogun. 01523_ T-07 Excavator is excavating. 01532_ K-01 Serf collects debris. 01569_ W-16 Scout destroyed. 01577_ U-05 Engineer lays Concrete. 01579_ T-07 Excavator is excavating. 01581_ U-05 Engineer lays Concrete. 01583_ T-07 Excavator is excavating. 01583_ U-05 Engineer lays Concrete. 01587_ T-07 Excavator is excavating. Map ----- +----------------------------------------------------+ | ?????????????????????????????????????????????? | | ?????????????????????????????????????????????? | | ?????????????????????????????????????????????? | | ?????????????????????????????????????????????? | | ?????????????????????????????????????????????? | | ?????????????????????????????????????????????? | | ?????????????????????????????????????????????? | | ?????????????????????????????????????????????? | | ?????????????????????????????????????????????? | | ??????????????????????????####+??????????????? | | ??????????????????????????# ??????????????? | | ??????????????????????????# ??????????????? | | ??????????????????????????# ??????????????? | | ??????????????????????????# #??????????????? | | ??????????????????????????# #??????????????? | | ??????????????????????????# #??????????????? | | ??????????????????????????# #??????????????? | | ??????????????????????????# #??????????????? | | ??????????????????????????# #??????????????? | | ??????????????????????????# #??????????????? | | ??????????????????????????# #??????????????? | | ??????????????????????????# ########???????? | | ??????????????????????????# # u#???????? | | ????????????????########### u #???????? | | ????????????????+ %= # #???????? | | ?####?????????????## @ ########???????? | | ?# ######+##???# #??????????????? | | ?" #####+###### #??????????????? | | ???? ## #k #??????????????? | | ????""" """ + # #??????????????? | | """ """ # """ """ + #??????????????? | | [ """ """ # """ """ # #??????????????? | | [ # """ """ # #??????????????? | | ########### ########???????? | | #?????????# # #???????? | | [ #?????????# # """ #???????? | | ####+###### #?????????# # """ #???????? | | ?????????####+#####???????+ + """ #???????? | | ?????????# #???????# # #???????? | | ?????????# """ #???????# # #???????? | | ?????????# """ #???????# ###############? | | ?????????# """ ######### # ! # | | ?????????# # # T [ #? | | ????????## """ + # """ """ #? | | ???? ????# """ # """"" # """ """ #? | | ?????????# """ # """"" #! """ """ #? | | ??????#??# # """"" # #? | | ????????########### #####+#########? | | ??????#?# # ## #?#?????? | | ??????#?# """"""" # ##??? ??? | +----------------------------------------------------+ Best States ------------- Heat Dissipation 28 Energy Generation 12 Energy Capacity 265 Matter Stores 300 Matter Capacity 300 Sight Range 16 Terrain Scan Range 16 Terrain Scan Density 10 Armor Coverage 150 Evasion (%) 42 Targeting Accuracy 6 Recoil Reduction 2 Item Schematics ----------------- None Robot Schematics ------------------ None Fabricated ------------ Nothing Alien Tech Used ----------------- None Achievements -------------- None Challenges ------------ None Game ------ Seed IntegratedGuidedShifter Manual? 0 Play Time 00:22:22 Cumulative 44.6 hours Start 2022.07.10 @ 09:35:33 End 2022.07.14 @ 20:57:03 Sessions 3 Manual Loads 0 Difficulty Rogue Special Mode None Game No. 35 Rogue 34 Adventurer 0 Explorer 1 Win Type - Total 0 Types 0/0/0/0/0/0/0/0/0 Lore% 17 Gallery% 25 Achievement% 23 Wizard Run 0 Options --------- ASCII 0 Keyboard 0 Movement Mouse Keybinds 0 Fullscreen 1 Font 18/X11 Map View 76x50 Tactical HUD 1 Map Filters NONE Filters NONE Steam 1 RUN: 74665acb-6b54-4430-bedb-c95ddc26d95f